Cogmind - Beta 15 @@@ ROGUE MODE // 2025.06.28 @ 07:31:39 Player: Florist Result: Destroyed by 7C-X1Y(R) with Subdweller Machine Gun Performance ------------- Evolutions (0) 0 Regions Visited (2) 400 Robots Destroyed (48) 240 Value Destroyed (1045) 1045 Prototype IDs (0) 0 Alien Tech Used (0) 0 Bonus (-20) -20 TOTAL SCORE: 1665 Bonus ------- Friendly Fire -20 Cogmind --------- Core Integrity 0/250 Matter 300/300 Energy 249/265 System Corruption 2% Temperature Cool (0) Movement Rolling (140) Ox4 Location -10/Subcaves Parts ------- > --- POWER (1) -------- Improved Ion Engine > --- PROPULSION (2) --- Wheel Wheel > --- UTILITY (2) ------ Huge Storage Unit Light Armor Plating > --- WEAPON (2) ------- Medium Laser Subdweller Laser > --- INVENTORY (25) --- Improved Ion Engine Subdweller Power Source Subdweller Power Source Compact Wheel Subdweller Monowheel Subdweller Monowheel Flight Unit Flight Unit Flight Unit Improved Heat Sink Improved Heat Sink Small Storage Unit Large Storage Unit Structural Scanner Visual Processing Unit Sensor Array Signal Interpreter Seismic Detector Medium Laser Subdweller Laser Subdweller Machine Gun Plasma Cutter Flamer Peak State ------------ > --- POWER ------------ Improved Ion Engine > --- PROPULSION ------- Light Treads Wheel > --- UTILITY ---------- Improved Heat Sink Huge Storage Unit > --- WEAPON ----------- Beam Cannon Subdweller Beam Cannon > --- INVENTORY -------- Improved Ion Engine Subdweller Power Source Wheel Wheel Compact Wheel Subdweller Monowheel Flight Unit Flight Unit Flight Unit Improved Heat Sink Small Storage Unit Large Storage Unit Structural Scanner Visual Processing Unit Sensor Array Signal Interpreter Seismic Detector Light Armor Plating Medium Laser Medium Laser Subdweller Laser Subdweller Laser Subdweller Machine Gun Plasma Cutter Flamer [Rating: 14] Favorites ----------- Power Improved Ion Engine Engine Improved Ion Engine Propulsion Light Treads Treads Light Treads Leg Aluminum Leg Wheel Wheel Utility Huge Storage Unit Device Improved Heat Sink Storage Huge Storage Unit Protection Light Armor Plating Weapon Medium Laser Energy Gun Medium Laser Energy Cannon Beam Cannon Ballistic Gun Assault Rifle Special Weapon Plasma Cutter Build | -11 -10 -10 ------- Run | Yrd Mat Sub Slots Evolved . | . . . Power . | . . . Propulsion . | . . . Utility . | . . . Weapon . | . . . Parts Attached 31 | 7 13 11 Power 3 | 1 1 1 Engine 3 | 1 1 1 Core . | . . . Reactor . | . . . Propulsion 11 | 2 3 6 Treads 6 | 2 2 2 Leg 1 | . 1 . Wheel 4 | . . 4 Hover . | . . . Flight . | . . . Utility 7 | 2 4 1 Device 2 | 1 1 . Storage 3 | 1 2 . Processor . | . . . Hackware . | . . . Protection 2 | . 1 1 Artifact . | . . . Weapon 10 | 2 5 3 Energy Gun 5 | . 4 1 Energy Cannon 2 | . . 2 Ballistic Gun 2 | 2 . . Ballistic Cannon . | . . . Launcher . | . . . Special Weapon 1 | . 1 . Impact Weapon . | . . . Slashing Weapon . | . . . Piercing Weapon . | . . . Special Melee Weapon . | . . . Unidentified Prototypes . | . . . Parts Lost 8 | . 1 7 Power 1 | . . 1 Propulsion 5 | . . 5 Utility 1 | . 1 . Weapon 1 | . . 1 Highest Loss Streak 2 | . 1 2 To Critical Strikes . | . . . Average Backups 17 | 2 11 23 Power 1 | . . 2 Propulsion 5 | 1 3 7 Utility 6 | . 4 9 Weapon 2 | . 1 3 Tool/Special . | . . . Unused Backups 21 | . 3 18 Power 4 | . 1 3 Propulsion 7 | . 2 5 Utility 7 | . . 7 Weapon 3 | . . 3 Tool/Special . | . . . Average Slot Usage (%) 99 | . 99 99 Engine 13 | . 14 13 Treads 26 | . 27 24 Wheel 1 | . . 3 Device 11 | . 10 12 Storage 14 | . 14 14 Protection 2 | . 3 1 Energy Gun 16 | . 21 12 Energy Cannon 7 | . . 15 Ballistic Gun 3 | . 6 . Peak Build Rating 14 | 7 12 14 Average Rating 11 | 5 10 12 On Entrance 6 | . 7 12 Naked Turns . | . . . Heaviest Build 99 | 14 94 99 Greatest Support 40 | 40 40 40 Greatest Overweight (x) 30 | . 4 30 Average Overweight (x) 1 | . 1 2 Largest Inventory Capacity 25 | 8 25 25 Average Capacity 22 | 7 20 25 Most Carried 25 | 5 23 25 Average Carried 17 | 2 11 23 Final Capacity 25 | 8 25 25 Final Carried 23 | 5 23 23 Class Distribution -------------------- 87% | Mutant 12% | Scavenger-Mutant Dominant Class ---------------- Mutant | -10/Materials Mutant | -10/Subcaves Resources | -11 -10 -10 ----------- Run | Yrd Mat Sub Matter Collected 882 | 179 470 233 Remotely . | . . . Salvage Created 1437 | 76 882 479 Parts 103 | 8 63 32 Haulers Intercepted 2 | . 2 . Recyclers Shooed 4 | . 4 . Parts Field Recycled . | . . . Retrieved Matter . | . . . Parts Self-Destructed 11 | . . 11 Prevented . | . . . Kills | -11 -10 -10 ------- Run | Yrd Mat Sub Combat Hostiles Destroyed 27 | . 15 12 Guns 16 | . 14 2 Cannons 10 | . . 10 Classes Destroyed 13 | 1 8 4 Worker 1 | . 1 . Builder 3 | . 3 . Tunneler 6 | 4 2 . Hauler 2 | . 2 . Recycler 2 | . 2 . Operator 2 | . 2 . Turret 2 | . . 2 Watcher 3 | . 3 . Swarmer 9 | . 6 3 Grunt 11 | . 9 2 Sentry 1 | . . 1 Subdweller 6 | . . 6 Scientist 1 | . . 1 Best Kill Streak 4 | 4 4 3 Combat Bots Only 3 | . 3 3 Max Kills in Single Turn 2 | 2 2 1 Gunslinging 1 | . 1 . Exploded . | . . . Melee . | . . . Uniques/NPCs Destroyed . | . . . Combat | -11 -10 -10 -------- Run | Yrd Mat Sub Hostile Shots Fired 208 | . 75 133 Missed 64 | . 24 40 Hits 144 | . 51 93 Projectile 144 | . 51 93 AOE 2 | . . 2 Critical Strikes 1 | . . 1 Damage Taken 1736 | . 586 1150 Core 256 | . 60 196 Absorbed by Shields . | . . . Core Remaining (%) 100 | 100 . . Volleys Fired 156 | 5 97 54 Largest 2 | 2 2 2 Hottest 140 | 40 100 140 Shots Fired 313 | 10 194 109 Gun 264 | 10 194 60 Cannon 49 | . . 49 Launcher . | . . . Special . | . . . Kinetic 112 | 10 102 . Thermal 201 | . 92 109 Explosive . | . . . Electromagnetic . | . . . Robot Hit Streak 14 | 7 14 12 Robot Miss Streak 7 | 1 7 5 Penetration Max . | . . . Secondary Targets 3 | . 3 . Max Gunslinging Chain 1 | . 1 . Shots Hit Robots 174 | 8 110 56 Core Hits 76 | 5 48 23 Critical Kills 1 | 1 . . Critical Parts Destroyed . | . . . Critical Strikes 14 | 1 10 3 Burn 13 | . 10 3 Destroy 1 | 1 . . Melee Attacks . | . . . Impact . | . . . Slashing . | . . . Piercing . | . . . Sneak Attacks . | . . . Combat Hostiles . | . . . Follow-up Attacks . | . . . Damage Inflicted 2593 | 82 1580 931 Guns 1902 | 82 1369 451 Cannons 480 | . . 480 Explosions 211 | . 211 . Melee . | . . . Ramming . | . . . Kinetic 704 | 82 622 . Thermal 1889 | . 958 931 Explosive . | . . . Electromagnetic . | . . . Impact . | . . . Slashing . | . . . Piercing . | . . . Highest Corruption 2 | . 2 2 Average Corruption 2 | . 2 2 Corruption Purged . | . . . Corruption Blocked . | . . . Effects 59 | . 24 35 Message Errors 15 | . 5 10 Matter Fused 15 | . 4 11 Heat Flow Errors 7 | . 3 4 Energy Discharges 9 | . 7 2 Parts Fused 1 | . 1 . Data Loss (minor) 3 | . 1 2 Data Loss (major) 7 | . 3 4 Misfires 2 | . . 2 Overload Shots . | . . . Overflow Damage 71 | . 71 . Projectiles . | . . . Explosions 71 | . 71 . Melee . | . . . Knockbacks . | . . . Impact . | . . . Kinetic . | . . . Secondary . | . . . Self-Inflicted Damage . | . . . Shots . | . . . Rammed . | . . . Targets Rammed . | . . . Kicked . | . . . Crushed . | . . . Highest Temperature 363 | . 363 163 Average Temperature 63 | . 61 68 Received Heat Transfer 723 | . 273 450 Effects 1 | . 1 . Short Circuit 1 | . 1 . Siege Activations . | . . . Martial Activations . | . . . Shielding Activations . | . . . Robots Disrupted . | . . . Combat Hostiles . | . . . Robots Corrupted . | . . . Combat Hostiles . | . . . Parts Fried . | . . . Impact Corruptions . | . . . Robots Melted 1 | . 1 . Combat Hostiles 1 | . 1 . Parts Melted 9 | . 7 2 Heat Transferred 5258 | . 3060 2198 Parts Sabotaged . | . . . Parts Stolen . | . . . Parts Stripped . | . . . Power Chain Reactions . | . . . Alert | -11 -10 -10 ------- Run | Yrd Mat Sub Maximum Alert Level . | . . . Low Security (%) 100 | 100 100 . Level 1 . | . . . Level 2 . | . . . Level 3 . | . . . Level 4 . | . . . Level 5 . | . . . High Security . | . . . Max Security . | . . . Peak Influence 134 | 15 134 . Initial . | . . . Average 35 | 2 36 . Influence Increases 815 | 20 565 230 Destroy 0b10 Robot/C 460 | . 300 160 Destroy 0b10 Robot/NC 95 | 20 75 . Destroy Leader 90 | . 80 10 Successful Hack 13 | . 13 . Disable Machine 45 | . 45 . Destroy Structure 22 | . 22 . Partial Spotted 15 | . 15 . Lose Combat Pursuer 75 | . 15 60 Influence Decreases 703 | 20 564 119 Entered New Map 1 | . . 1 Time Decay 672 | 20 564 88 Lost Part 30 | . . 30 Squads Dispatched 2 | . 2 . Investigation . | . . . Extermination . | . . . Reinforcement 2 | . 2 . Assault . | . . . Garrison . | . . . Intercept . | . . . Searches Triggered . | . . . Construction Impeded . | . . . Haulers Reinforced . | . . . Active Scanning Responses . | . . . Cargo Convoy Interrupts . | . . . Stealth | -11 -10 -10 --------- Run | Yrd Mat Sub Distress Signals 1 | . 1 . Communications Jammed . | . . . Distress Signals . | . . . Times Spotted 44 | . 26 18 Peak Tracking Total 5 | . 5 5 Tactical Retreats 4 | . 1 3 Traps | -11 -10 -10 ------- Run | Yrd Mat Sub Traps Triggered 3 | . 2 1 Indirectly . | . . . Trap Hack Attempts . | . . . Triggered . | . . . Disarmed . | . . . Reprogrammed . | . . . Reused . | . . . Traps Extracted . | . . . Installed . | . . . Triggered . | . . . Machines | -11 -10 -10 ---------- Run | Yrd Mat Sub Machines Disabled 4 | . 3 1 Max in Single Turn 2 | . 2 1 Machines Repaired . | . . . Machines Dismantled 1 | . 1 . Machines Sabotaged . | . . . Overloaded Fab Kills . | . . . Hacking | -11 -10 -10 --------- Run | Yrd Mat Sub Machines Accessed 6 | . 6 . Terminals 5 | . 5 . Fabricators . | . . . Repair Stations . | . . . Recycling Units 1 | . 1 . Scanalyzers . | . . . Garrison Access . | . . . Total Hacks 16 | . 16 . Successful 8 | . 8 . Failed 8 | . 8 . Catastrophic 1 | . 1 . Database Lockouts . | . . . Manual 11 | . 11 . Terminals 13 | . 13 . Fabricators . | . . . Repair Stations . | . . . Recycling Units 3 | . 3 . Scanalyzers . | . . . Garrison Access . | . . . Terminal Hacks 2 | . 2 . Level Access Points 1 | . 1 . Terminal Index 1 | . 1 . Fabricator Hacks . | . . . Repair Station Hacks . | . . . Recycling Unit Hacks 1 | . 1 . Retrieve Components 1 | . 1 . Scanalyzer . | . . . Garrison Access Hacks . | . . . Unauthorized Hacks 5 | . 5 . Terminals 4 | . 4 . Botnet 4 | . 4 . Fabricators . | . . . Repair Stations . | . . . Recycling Units 1 | . 1 . Reject 1 | . 1 . Scanalyzers . | . . . Garrison Access . | . . . Data Cores Recovered . | . . . Used . | . . . Hacking Detections 4 | . 4 . Full Trace Events . | . . . Feedback Events . | . . . Feedback Blocked . | . . . Robot Schematics Acquired . | . . . Robots Built . | . . . Authchips . | . . . Time . | . . . Total Robot Build Rating . | . . . Part Schematics Acquired . | . . . Parts Built . | . . . Authchips . | . . . Time . | . . . Total Part Build Rating . | . . . Parts Repaired . | . . . Time . | . . . Parts Recycled . | . . . Recycled Matter . | . . . Retrieved Matter . | . . . Retrieved Components 10 | . 10 . Parts Scanalyzed . | . . . Part Schematics Acquired . | . . . Parts Damaged . | . . . Bothacking | -11 -10 -10 ------------ Run | Yrd Mat Sub Used RIF Installer . | . . . Robots Hacked . | . . . Non-combat . | . . . Combat . | . . . Robot Hacks Applied . | . . . Relay Couplers Released . | . . . Fabnet Peak Effective % . | . . . Robots Rewired . | . . . Allies Hacked . | . . . Hacks Repelled . | . . . Allies | -11 -10 -10 -------- Run | Yrd Mat Sub Total Allies . | . . . Largest Group . | . . . Highest-Rated Group . | . . . Highest-Rated Ally . | . . . Total Orders . | . . . Ally Attacks . | . . . Total Damage . | . . . Kills . | . . . Allies Corrupted . | . . . Allies Melted . | . . . Intel | -11 -10 -10 ------- Run | Yrd Mat Sub Active Infowar (turns) 216 | 34 182 . Seismic 216 | 34 182 . Robot Analysis Total . | . . . Derelict Logs Recovered 3 | . . 3 Drone Launches . | . . . Drone Recoveries . | . . . Exploration | -11 -10 -10 ------------- Run | Yrd Mat Sub Turns Passed 5952 | 118 2920 2914 Spaces Moved 1931 | 59 983 889 Core 7 | 6 . 1 Treads 1705 | 53 983 669 Legs . | . . . Wheels 219 | . . 219 Hover . | . . . Flight . | . . . Fastest Speed 50 | 50 160 135 Average Speed 265 | 148 258 280 Slowest Speed 1550 | 160 480 1550 Overloaded Moves . | . . . Propulsion Burnouts . | . . . Robots Hopped . | . . . Potential Cave-ins . | . . . Cave-ins Triggered . | . . . Exploration Rate (%) 48 | 6 89 50 Regions Visited 2 Branch Regions 1 Pre-discovered Areas 1 | . . 1 Known Exits Taken . | . . . Unknown Exits Taken 2 | 1 1 . Scrap Searched . | . . . Spaces Dug . | . . . Terrain Destroyed 21 | . 19 2 Melee . | . . . Projectile 2 | . . 2 AOE 19 | . 19 . Terrain Rammed . | . . . Walls Destroyed . | . . . Machines Disabled . | . . . Actions | -11 -10 -10 --------- Run | Yrd Mat Sub Total 2456 | 77 1174 1205 Wait 273 | 1 39 233 Move 1929 | 58 982 889 Hop . | . . . Pick Up 39 | 6 24 9 Fast Attach 12 | 6 4 2 Attach 15 | 1 4 10 Detach 1 | . . 1 Swap 10 | . 7 3 Drop 17 | . 13 4 Fire 156 | 5 97 54 Melee . | . . . Ram . | . . . Kick . | . . . Crush . | . . . Escape Stasis . | . . . Rewire . | . . . Trap . | . . . Miscellaneous 4 | . 4 . Route ------- -11/Scrapyard -10/Materials (discovered 5 exits: *Mat x3 / [*Min] / [*Sub]) -10/Subcaves (discovered 1 exit: [*Rec]) History --------- Turn | Location | Event 12 | -11/Scrapyard | Discovered new exit (range 13) 119 | -11/Scrapyard | Entered Materials 131 | -10/Materials | Identified exit to Materials 323 | -10/Materials | Build established: Mutant 954 | -10/Materials | Discovered new exit (range 12) 1613 | -10/Materials | Discovered new exit (range 9) 3039 | -10/Materials | Entered Subcaves 3040 | -10/Subcaves | Approached by a straggling Scientist 3158 | -10/Subcaves | Learned location of Mines (-9) 4779 | -10/Subcaves | Core integrity fell below 50% 4970 | -10/Subcaves | Ambushed by Subdwellers from Twisted Machinery 5036 | -10/Subcaves | Learned 8 Materials zone layouts 5197 | -10/Subcaves | Build established: Scavenger-Mutant 5596 | -10/Subcaves | Discovered new exit (range 11) 5606 | -10/Subcaves | Core integrity fell below 20% 5736 | -10/Subcaves | A swath of the cavern ceiling suddenly collapsed 5920 | -10/Subcaves | Build established: Mutant 5953 | -10/Subcaves | Destroyed by 7C-X1Y(R) with Subdweller Machine Gun Last Messages --------------- 05622_ Acquired 10 matter. 05623_ Acquired 1 matter. 05624_ Flight Unit fries itself beyond repair. 05627_ Beam Cannon destroyed. 05634_ Lgt. Assault Rifle fries itself beyond repair. 05646_ Autobeam Turret suffers critical hit (Burn). 05650_ System corrupted: Matter fused (-8). 05655_ Autobeam Turret destroyed. 05680_ Lgt. Treads destroyed. 05682_ Destroyed Autobeam. 05685_ Autobeam Turret destroyed. 05685_ Machine disabled. 05689_ Dropped Lgt. Treads. 05691_ Acquired 37 matter. A swath of the cavern ceiling suddenly collapses. 05744_ System corrupted: Heat flow error (+131). 05748_ Acquired derelict log, extracted data. Data stored: Storage entrances (x1). 05864_ Acquired Sub. Power Source. 05871_ Acquired Sub. Monowheel. Map ----- +----------------------------------------------------+ | ???????????????????????????????????????# ##"" ## | | ???????????????????????????????????????# #" "#? | | ???????????????????????????????????????## """"""#? | | ????????????????????????????????????????# """" "#? | | ???????????????????????????????????###### """[""#? | | ??????????????????????????????????## "" ""## | | ??????????????????????????????????# [" " # | | ??????????????????????????????????## "" ## | | ???????????????????????????????????## " ##? | | ????????????????????????????????????### ##?? | | ??????????????????????????????????????# ###? | | ??????????????????????????????????????# ## | | ?????????????????????????????##??###### # | | ????????????????????????????? #??# # | | ????????????????????????????? ??# ## # | | ??????????????????????????### #??## #?# | | ??????????????????????????# #???#### ##? | | ?????????????????????????## ##### ## #? # | | ?????????????????????????# # ## #?? ## | | ??????????????????????????# % ##??##? | | ?????????????????????????"#" #????? | | ???????????????????????# ## # #????? | | ??????????????###??????? ##" # ## ## #####? | | ?????????????## #?????????# # ### ## #? | | ?????????????# ########### ## #? | | ?????????????# # # ## @# ## ###? | | ?????????????# R ####### ##??? | | ?????????????## ## ## &&& ##???? | | ??????????????## ## # #### ####%&& ##????? | | ??????????????## #######???## ##??## #?????? | | ??????????????# ##?#####??# ##????# ##?????? | | ??????????????# ### ##?# ######## ##??????? | | ??????????????# ### # # # ##??????? | | ??????????????# ## ##?????? | | ??????????????## #?????? | | ???????????????## # # # ##?#### | | ????????????????##### ########## #?# | | ????????????????????#### #####???????## ### = | | ???????????????????????# #???????????# ## % | | ???????????????????????## #???????????## | | ???????????????????????## #??????????# # # | | ???????????????????????#"""##??????????## ### ## | | ???????????????????????#" "######???????# ## ## | | ???????????????????????#""" "#???????#&! # | | ???????????????????????## "#??????##% ### # | | ????????????????????????## ##????## * ### ## | | ?????????????????????????#### ######" ######? | | ????????????????????????????# ## & && #???? | | ????????????????????????????# ## %%=& ##???? | | ???????????????????????###?## ###### %###????? | +----------------------------------------------------+ Best States ------------- Heat Dissipation 39 Energy Generation 12 Energy Capacity 265 Matter Stores 300 Matter Capacity 300 Sight Range 16 Terrain Scan Density 10 Armor Coverage 150 Evasion (%) 40 Recoil Reduction 2 Item Schematics ----------------- None Robot Schematics ------------------ None Fabricated ------------ Nothing Repaired ---------- Nothing Alien Tech Used ----------------- None Achievements -------------- None Challenges ------------ None Game ------ Seed FieldSupersonicMultirail Manual? 0 Play Time 00:18:31 Cumulative 134.8 hours Start 2025.06.28 @ 06:45:54 End 2025.06.28 @ 07:31:39 Sessions 1 Manual Loads 0 Difficulty Rogue Special Mode None Game No. 137 Rogue 137 Adventurer 0 Explorer 0 Win Type - Total 8 Types 5/0/1/2/0/0/0/0/0/0 Lore% 61 Gallery% 58 Achievement% 57 Wizard Run 0 Options --------- Layout 1 ASCII 0 Keyboard 0 Movement Mouse Keybinds 0 Fullscreen 1 Font 32/SmallcapsGlow Map View 77x35 Zoom Use 0% Tactical HUD 1 Map Filters NONE Filters NONE Steam 1 RUN: bd7dfc90-ff8a-4f61-b7b4-281531226673